Workbook

Sheet Баланс энергии
A1: Заполняется в тыс. кВт.ч. !
A3: Баланс электрической энергии по сетям ВН, СН1, СН2, и НН | H3: ='[12]Инф-я'!C14 -> МУП «Горэлектросеть» г. Муром
AF4: тыс. кВт.ч.
A5: № п.п. | B5: Показатели | C5: Принято регулирующим органом на 2022 год | H5: Факт за 2022 год | M5: Принято регулирующим органом на 2023 год | R5: По данным организации на 2024 год | W5: По данным организации на 1 полугодие 2024 года | AB5: По данным организации на 2 полугодие 2024 года | AG5: По данным экспертов на 2024 год | AL5: По данным экспертов на 1 полугодие 2024 года | AQ5: По данным экспертов на 2 полугодие 2024 года
C6: Всего | D6: ВН | E6: СН1 | F6: СН2 | G6: НН | H6: Всего | I6: ВН | J6: СН1 | K6: СН2 | L6: НН | M6: Всего | N6: ВН | O6: СН1 | P6: СН2 | Q6: НН | R6: Всего | S6: ВН | T6: СН1 | U6: СН2 | V6: НН | W6: Всего | X6: ВН | Y6: СН1 | Z6: СН2 | AA6: НН | AB6: Всего | AC6: ВН | AD6: СН1 | AE6: СН2 | AF6: НН | AG6: Всего | AH6: ВН | AI6: СН1 | AJ6: СН2 | AK6: НН | AL6: Всего | AM6: ВН | AN6: СН1 | AO6: СН2 | AP6: НН | AQ6: Всего | AR6: ВН | AS6: СН1 | AT6: СН2 | AU6: НН
A7: 1 | B7: 2 | C7: 3 | D7: 4 | E7: 5 | F7: 6 | G7: 7 | H7: 18 | I7: 19 | J7: 20 | K7: 21 | L7: 22 | M7: 33 | N7: 34 | O7: 35 | P7: 36 | Q7: 37 | R7: 48 | S7: 49 | T7: 50 | U7: 51 | V7: 52 | W7: 53 | X7: 54 | Y7: 55 | Z7: 56 | AA7: 57 | AB7: 58 | AC7: 59 | AD7: 60 | AE7: 61 | AF7: 62 | AG7: 63 | AH7: 64 | AI7: 65 | AJ7: 66 | AK7: 67 | AL7: 53 | AM7: 54 | AN7: 55 | AO7: 56 | AP7: 57 | AQ7: 58 | AR7: 59 | AS7: 60 | AT7: 61 | AU7: 62
A8: 1. | B8: Поступление эл.энергии в сеть , ВСЕГО | C8: =C18+C20+C21 -> 177085.2 | D8: =D14+D15+D16+D17 -> 173870.2042 | E8: =E9+E14+E15+E16+E17 -> 2978.83506 | F8: =F9+F14+F15+F16+F17 -> 177085.2 | G8: =G9+G14+G15+G16+G17 -> 100659.5289 | H8: =H18+H20+H21 -> 186963.842 | I8: =I14+I15+I16+I17 -> 183399.45 | J8: =J9+J14+J15+J16+J17 -> 3344.062 | K8: =K9+K14+K15+K16+K17 -> 186963.842 | L8: =L9+L14+L15+L16+L17 -> 104407.1629 | M8: =M18+M20+M21 -> 182430.5558 | N8: =N14+N15+N16+N17 -> 179517.3626 | O8: =O9+O14+O15+O16+O17 -> 2599.375077 | P8: =P9+P14+P15+P16+P17 -> 182430.5558 | Q8: =Q9+Q14+Q15+Q16+Q17 -> 102351.0992 | R8: =R18+R20+R21 -> 186963.842 | S8: =S14+S15+S16+S17 -> 183399.45 | T8: =T9+T14+T15+T16+T17 -> 3344.062 | U8: =U9+U14+U15+U16+U17 -> 186963.842 | V8: =V9+V14+V15+V16+V17 -> 104407.1629 | W8: =W18+W20+W21 -> 92851.634 | X8: =X14+X15+X16+X17 -> 90976.091 | Y8: =Y9+Y14+Y15+Y16+Y17 -> 1756.603 | Z8: =Z9+Z14+Z15+Z16+Z17 -> 92851.634 | AA8: =AA9+AA14+AA15+AA16+AA17 -> 52059.4892 | AB8: =AB18+AB20+AB21 -> 94112.208 | AC8: =AC14+AC15+AC16+AC17 -> 92423.359 | AD8: =AD9+AD14+AD15+AD16+AD17 -> 1587.459 | AE8: =AE9+AE14+AE15+AE16+AE17 -> 94112.208 | AF8: =AF9+AF14+AF15+AF16+AF17 -> 52347.6737 | AG8: =AG18+AG20+AG21 -> 0 | AH8: =AH14+AH15+AH16+AH17 -> 0 | AI8: =AI9+AI14+AI15+AI16+AI17 -> 0 | AJ8: =AJ9+AJ14+AJ15+AJ16+AJ17 -> 0 | AK8: =AK9+AK14+AK15+AK16+AK17 -> 0 | AL8: =AL18+AL20+AL21 -> 0 | AM8: =AM14+AM15+AM16+AM17 -> 0 | AN8: =AN9+AN14+AN15+AN16+AN17 -> 0 | AO8: =AO9+AO14+AO15+AO16+AO17 -> 0 | AP8: =AP9+AP14+AP15+AP16+AP17 -> 0 | AQ8: =AQ18+AQ20+AQ21 -> 0 | AR8: =AR14+AR15+AR16+AR17 -> 0 | AS8: =AS9+AS14+AS15+AS16+AS17 -> 0 | AT8: =AT9+AT14+AT15+AT16+AT17 -> 0 | AU8: =AU9+AU14+AU15+AU16+AU17 -> 0
A9: 1.1. | B9: из смежной сети, всего | C9: х | D9: х | E9: =E11 -> 0 | F9: =F11+F12 -> 176849.0392 | G9: =G11+G12+G13 -> 100659.5289 | H9: х | I9: х | J9: =J11 -> 0 | K9: =K11+K12 -> 186743.512 | L9: =L11+L12+L13 -> 104407.1629 | M9: х | N9: х | O9: =O11 -> 0 | P9: =P11+P12 -> 182116.7377 | Q9: =Q11+Q12+Q13 -> 102351.0992 | R9: х | S9: х | T9: =T11 -> 0 | U9: =U11+U12 -> 186743.512 | V9: =V11+V12+V13 -> 104407.1629 | W9: х | X9: х | Y9: =Y11 -> 0 | Z9: =Z11+Z12 -> 92732.694 | AA9: =AA11+AA12+AA13 -> 52059.4892 | AB9: х | AC9: х | AD9: =AD11 -> 0 | AE9: =AE11+AE12 -> 94010.818 | AF9: =AF11+AF12+AF13 -> 52347.6737 | AG9: х | AH9: х | AI9: =AI11 -> 0 | AJ9: =AJ11+AJ12 -> 0 | AK9: =AK11+AK12+AK13 -> 0 | AL9: х | AM9: х | AN9: =AN11 -> 0 | AO9: =AO11+AO12 -> 0 | AP9: =AP11+AP12+AP13 -> 0 | AQ9: х | AR9: х | AS9: =AS11 -> 0 | AT9: =AT11+AT12 -> 0 | AU9: =AU11+AU12+AU13 -> 0
B10: в том числе из сети | C10: х | D10: х | E10: х | F10: х | G10: х | H10: х | I10: х | J10: х | K10: х | L10: х | M10: х | N10: х | O10: х | P10: х | Q10: х | R10: х | S10: х | T10: х | U10: х | V10: х | W10: х | X10: х | Y10: х | Z10: х | AA10: х | AB10: х | AC10: х | AD10: х | AE10: х | AF10: х | AG10: х | AH10: х | AI10: х | AJ10: х | AK10: х | AL10: х | AM10: х | AN10: х | AO10: х | AP10: х | AQ10: х | AR10: х | AS10: х | AT10: х | AU10: х
A11: 1.1.1. | B11: ВН | C11: х | D11: х | F11: =D8-D18-D20-D21-E11-G11 -> 173870.2042 | H11: х | I11: х | K11: =I8-I18-I20-I21-J11-L11 -> 183399.45 | M11: х | N11: х | P11: =N8-N18-N20-N21-O11-Q11 -> 179517.3626 | R11: х | S11: х | U11: =S8-S18-S20-S21-T11-V11 -> 183399.45 | W11: х | X11: х | Z11: =X8-X18-X20-X21-Y11-AA11 -> 90976.091 | AB11: х | AC11: х | AE11: =AC8-AC18-AC20-AC21-AD11-AF11 -> 92423.359 | AG11: х | AH11: х | AJ11: =AH8-AH18-AH20-AH21-AI11-AK11 -> 0 | AL11: х | AM11: х | AO11: =AM8-AM18-AM20-AM21-AN11-AP11 -> 0 | AQ11: х | AR11: х | AT11: =AR8-AR18-AR20-AR21-AS11-AU11 -> 0
A12: 1.1.2. | B12: СН1 | C12: х | D12: х | E12: х | F12: =E8-E18-E20-E21-G12 -> 2978.83506 | H12: х | I12: х | J12: х | K12: =J8-J18-J20-J21-L12 -> 3344.062 | M12: х | N12: х | O12: х | P12: =O8-O18-O20-O21-Q12 -> 2599.375077 | R12: х | S12: х | T12: х | U12: =T8-T18-T20-T21-V12 -> 3344.062 | W12: х | X12: х | Y12: х | Z12: =Y8-Y18-Y20-Y21-AA12 -> 1756.603 | AB12: х | AC12: х | AD12: х | AE12: =AD8-AD18-AD20-AD21-AF12 -> 1587.459 | AG12: х | AH12: х | AI12: х | AJ12: =AI8-AI18-AI20-AI21-AK12 -> 0 | AL12: х | AM12: х | AN12: х | AO12: =AN8-AN18-AN20-AN21-AP12 -> 0 | AQ12: х | AR12: х | AS12: х | AT12: =AS8-AS18-AS20-AS21-AU12 -> 0
A13: 1.1.3. | B13: СН2 | C13: х | D13: х | E13: х | F13: х | G13: =F8-F18-F20-F21 -> 100659.5289 | H13: х | I13: х | J13: х | K13: х | L13: =K8-K18-K20-K21 -> 104407.1629 | M13: х | N13: х | O13: х | P13: х | Q13: =P8-P18-P20-P21 -> 102351.0992 | R13: х | S13: х | T13: х | U13: х | V13: =U8-U18-U20-U21 -> 104407.1629 | W13: х | X13: х | Y13: х | Z13: х | AA13: =Z8-Z18-Z20-Z21 -> 52059.4892 | AB13: х | AC13: х | AD13: х | AE13: х | AF13: =AE8-AE18-AE20-AE21 -> 52347.6737 | AG13: х | AH13: х | AI13: х | AJ13: х | AK13: =AJ8-AJ18-AJ20-AJ21 -> 0 | AL13: х | AM13: х | AN13: х | AO13: х | AP13: =AO8-AO18-AO20-AO21 -> 0 | AQ13: х | AR13: х | AS13: х | AT13: х | AU13: =AT8-AT18-AT20-AT21 -> 0
A14: 1.2. | B14: от электростанций | C14: =SUM(D14:G14) -> 0 | H14: =SUM(I14:L14) -> 0 | M14: =SUM(N14:Q14) -> 0 | R14: =SUM(S14:V14) -> 0 | W14: =SUM(X14:AA14) -> 0 | AB14: =SUM(AC14:AF14) -> 0 | AG14: =SUM(AH14:AK14) -> 0 | AL14: =SUM(AM14:AP14) -> 0 | AQ14: =SUM(AR14:AU14) -> 0
A15: 1.3. | B15: от ПАО "ФСК-Россети" | C15: =SUM(D15:G15) -> 0 | H15: =SUM(I15:L15) -> 0 | M15: =SUM(N15:Q15) -> 0 | R15: =SUM(S15:V15) -> 0 | W15: =SUM(X15:AA15) -> 0 | AB15: =SUM(AC15:AF15) -> 0 | AG15: =SUM(AH15:AK15) -> 0 | AL15: =SUM(AM15:AP15) -> 0 | AQ15: =SUM(AR15:AU15) -> 0
A16: 1.4. | B16: от филиала "Владимирэнерго" ПАО «Россети Центр и Приволжье» | C16: =SUM(D16:G16) -> 177002.4633 | D16: 173870.2042 | E16: 2978.83506 | F16: 153.4241029 | H16: =SUM(I16:L16) -> 186963.842 | I16: 183399.45 | J16: 3344.062 | K16: 220.33 | M16: =SUM(N16:Q16) -> 182116.7377 | N16: 179517.3626 | O16: 2599.375077 | P16: 0 | R16: =SUM(S16:V16) -> 186963.842 | S16: =X16+AC16 -> 183399.45 | T16: =Y16+AD16 -> 3344.062 | U16: 220.33 | W16: =SUM(X16:AA16) -> 92851.634 | X16: 90976.091 | Y16: 1756.603 | Z16: 118.94 | AB16: =SUM(AC16:AF16) -> 94112.208 | AC16: 92423.359 | AD16: 1587.459 | AE16: 101.39 | AG16: =SUM(AH16:AK16) -> 0 | AL16: =SUM(AM16:AP16) -> 0 | AQ16: =SUM(AR16:AU16) -> 0
A17: 1.5. | B17: от других сетевых организаций | C17: =SUM(D17:G17) -> 82.73668313 | F17: 82.73668313 | H17: =SUM(I17:L17) -> 0 | M17: =SUM(N17:Q17) -> 313.8181415 | N17: 0 | O17: 0 | P17: 313.8181415 | R17: =SUM(S17:V17) -> 0 | W17: =SUM(X17:AA17) -> 0 | AB17: =SUM(AC17:AF17) -> 0 | AG17: =SUM(AH17:AK17) -> 0 | AL17: =SUM(AM17:AP17) -> 0 | AQ17: =SUM(AR17:AU17) -> 0
A18: 2. | B18: Потери электроэнергии в сети | C18: =SUM(D18:G18) -> 12980.3 | D18: =D8*D19/100 -> 0 | E18: =E8*E19/100 -> 0 | F18: =F8*F19/100 -> 6941.73984 | G18: =G8*G19/100 -> 6038.56016 | H18: =SUM(I18:L18) -> 14200.152 | I18: =I8*I19/100 -> 0 | J18: =J8*J19/100 -> 0 | K18: =K8*K19/100 -> 7505.3421 | L18: =L8*L19/100 -> 6694.8099 | M18: =SUM(N18:Q18) -> 13372.09571 | N18: =N8*N19/100 -> 0 | O18: =O8*O19/100 -> 0 | P18: =P8*P19/100 -> 7151.277788 | Q18: =Q8*Q19/100 -> 6220.817921 | R18: =SUM(S18:V18) -> 13704.44962 | S18: =S8*S19/100 -> 0 | T18: =T8*T19/100 -> 0 | U18: =U8*U19/100 -> 7009.639719 | V18: =V8*V19/100 -> 6694.8099 | W18: =SUM(X18:AA18) -> 6555.688 | X18: =X8*X19/100 -> 0 | Y18: =Y8*Y19/100 -> 0 | Z18: =Z8*Z19/100 -> 3515.6478 | AA18: =AA8*AA19/100 -> 3040.0402 | AB18: =SUM(AC18:AF18) -> 7148.761619 | AC18: =AC8*AC19/100 -> 0 | AD18: =AD8*AD19/100 -> 0 | AE18: =AE8*AE19/100 -> 3493.991919 | AF18: =AF8*AF19/100 -> 3654.7697 | AG18: =SUM(AH18:AK18) -> 0 | AH18: =AH8*AH19/100 -> 0 | AI18: =AI8*AI19/100 -> 0 | AJ18: =AJ8*AJ19/100 -> 0 | AK18: =AK8*AK19/100 -> 0 | AL18: =SUM(AM18:AP18) -> 0 | AM18: =AM8*AM19/100 -> 0 | AN18: =AN8*AN19/100 -> 0 | AO18: =AO8*AO19/100 -> 0 | AP18: =AP8*AP19/100 -> 0 | AQ18: =SUM(AR18:AU18) -> 0 | AR18: =AR8*AR19/100 -> 0 | AS18: =AS8*AS19/100 -> 0 | AT18: =AT8*AT19/100 -> 0 | AU18: =AU8*AU19/100 -> 0
A19: 2.1. | B19: то же в % (п.2./п.1.) | C19: =IF(C8=0,0,C18/C8*100) -> 7.329974498 | F19: 3.92 | G19: 5.998995055 | H19: =IF(H8=0,0,H18/H8*100) -> 7.595132753 | K19: 4.014328129 | L19: 6.412213218 | M19: =IF(M8=0,0,M18/M8*100) -> 7.3299649 | P19: 3.92 | Q19: 6.07791999 | R19: =IF(R8=0,0,R18/R8*100) -> 7.33 | U19: 3.749195376 | V19: 6.412213218 | W19: =IF(W8=0,0,W18/W8*100) -> 7.060390558 | Z19: 3.786306873 | AA19: 5.839550573 | AB19: =IF(AB8=0,0,AB18/AB8*100) -> 7.595998192 | AE19: 3.712580964 | AF19: 6.981723239 | AG19: =IF(AG8=0,0,AG18/AG8*100) -> 0 | AL19: =IF(AL8=0,0,AL18/AL8*100) -> 0 | AQ19: =IF(AQ8=0,0,AQ18/AQ8*100) -> 0
A20: 3. | B20: Расход электроэнергии на производственные и хознужды | C20: =SUM(D20:G20) -> 0 | H20: =SUM(I20:L20) -> 0 | M20: =SUM(N20:Q20) -> 0 | R20: =SUM(S20:V20) -> 0 | W20: =SUM(X20:AA20) -> 0 | AB20: =SUM(AC20:AF20) -> 0 | AG20: =SUM(AH20:AK20) -> 0 | AL20: =SUM(AM20:AP20) -> 0 | AQ20: =SUM(AR20:AU20) -> 0
A21: 4. | B21: Полезный отпуск из сети | C21: =SUM(D21:G21) -> 164104.9 | D21: =D22+D23+D24 -> 0 | E21: =E22+E23+E24 -> 0 | F21: =F22+F23+F24 -> 69483.93128 | G21: =G8-G18-G20 -> 94620.96872 | H21: =SUM(I21:L21) -> 172763.69 | I21: =I22+I23+I24 -> 0 | J21: =J22+J23+J24 -> 0 | K21: =K22+K23+K24 -> 75051.337 | L21: =L8-L18-L20 -> 97712.353 | M21: =SUM(N21:Q21) -> 169058.4601 | N21: =N22+N23+N24 -> 0 | O21: =O22+O23+O24 -> 0 | P21: =P22+P23+P24 -> 72928.17878 | Q21: =Q8-Q18-Q20 -> 96130.28132 | R21: =SUM(S21:V21) -> 173259.3924 | S21: =S22+S23+S24 -> 0 | T21: =T22+T23+T24 -> 0 | U21: =U22+U23+U24 -> 75547.03938 | V21: =V8-V18-V20 -> 97712.353 | W21: =SUM(X21:AA21) -> 86295.946 | X21: =X22+X23+X24 -> 0 | Y21: =Y22+Y23+Y24 -> 0 | Z21: =Z22+Z23+Z24 -> 37276.497 | AA21: =AA8-AA18-AA20 -> 49019.449 | AB21: =SUM(AC21:AF21) -> 86963.44638 | AC21: =AC22+AC23+AC24 -> 0 | AD21: =AD22+AD23+AD24 -> 0 | AE21: =AE22+AE23+AE24 -> 38270.54238 | AF21: =AF8-AF18-AF20 -> 48692.904 | AG21: =SUM(AH21:AK21) -> 0 | AH21: =AH22+AH23+AH24 -> 0 | AI21: =AI22+AI23+AI24 -> 0 | AJ21: =AJ22+AJ23+AJ24 -> 0 | AK21: =AK8-AK18-AK20 -> 0 | AL21: =SUM(AM21:AP21) -> 0 | AM21: =AM22+AM23+AM24 -> 0 | AN21: =AN22+AN23+AN24 -> 0 | AO21: =AO22+AO23+AO24 -> 0 | AP21: =AP8-AP18-AP20 -> 0 | AQ21: =SUM(AR21:AU21) -> 0 | AR21: =AR22+AR23+AR24 -> 0 | AS21: =AS22+AS23+AS24 -> 0 | AT21: =AT22+AT23+AT24 -> 0 | AU21: =AU8-AU18-AU20 -> 0
A22: 4.1. | B22: потребителям, присоединенным к сети | C22: =SUM(D22:G22) -> 161796.1245 | F22: 67175.15578 | G22: 94620.96872 | H22: =SUM(I22:L22) -> 172763.69 | K22: 75051.337 | L22: 97712.353 | M22: =SUM(N22:Q22) -> 166393.7429 | P22: 70263.46157 | Q22: 96130.28132 | R22: =SUM(S22:V22) -> 173259.3924 | U22: =Z22+AE22 -> 75547.03938 | V22: =AA22+AF22 -> 97712.353 | W22: =SUM(X22:AA22) -> 86295.946 | Z22: 37276.497 | AA22: 49019.449 | AB22: =SUM(AC22:AF22) -> 86963.44638 | AE22: 38270.54238 | AF22: 48692.904 | AG22: =SUM(AH22:AK22) -> 0 | AL22: =SUM(AM22:AP22) -> 0 | AQ22: =SUM(AR22:AU22) -> 0
A23: 4.2. | B23: переток в сеть филиала "Владимирэнерго" ПАО «Россети Центр и Приволжье» | C23: =SUM(D23:G23) -> 0 | F23: 0 | G23: 0 | H23: =SUM(I23:L23) -> 0 | M23: =SUM(N23:Q23) -> 0 | R23: =SUM(S23:V23) -> 0 | W23: =SUM(X23:AA23) -> 0 | AB23: =SUM(AC23:AF23) -> 0 | AG23: =SUM(AH23:AK23) -> 0 | AL23: =SUM(AM23:AP23) -> 0 | AQ23: =SUM(AR23:AU23) -> 0
A24: 4.3. | B24: переток в другие сетевые организации | C24: =SUM(D24:G24) -> 2308.775498 | F24: 2308.775498 | G24: 0 | H24: =SUM(I24:L24) -> 0 | M24: =SUM(N24:Q24) -> 2664.717209 | P24: 2664.717209 | Q24: 0 | R24: =SUM(S24:V24) -> 0 | W24: =SUM(X24:AA24) -> 0 | AB24: =SUM(AC24:AF24) -> 0 | AG24: =SUM(AH24:AK24) -> 0 | AL24: =SUM(AM24:AP24) -> 0 | AQ24: =SUM(AR24:AU24) -> 0
B25: Проверка | D25: =D8-D18-D20-D22-D23-D24-E11-F11-G11 -> 0 | E25: =E8-E18-E20-E22-E23-E24-F12-G12 -> 0 | F25: =F8-F18-F20-F22-F23-F24-G13 -> 0 | G25: =G8-G18-G20-G22-G23-G24 -> -1.455191523e-11 | I25: =I8-I18-I20-I22-I23-I24-J11-K11-L11 -> 0 | J25: =J8-J18-J20-J22-J23-J24-K12-L12 -> 0 | K25: =K8-K18-K20-K22-K23-K24-L13 -> 0 | L25: =L8-L18-L20-L22-L23-L24 -> 0 | N25: =N8-N18-N20-N22-N23-N24-O11-P11-Q11 -> 0 | O25: =O8-O18-O20-O22-O23-O24-P12-Q12 -> 0 | P25: =P8-P18-P20-P22-P23-P24-Q13 -> 0 | Q25: =Q8-Q18-Q20-Q22-Q23-Q24 -> 1.455191523e-11 | S25: =S8-S18-S20-S22-S23-S24-T11-U11-V11 -> 0 | T25: =T8-T18-T20-T22-T23-T24-U12-V12 -> 0 | U25: =U8-U18-U20-U22-U23-U24-V13 -> 0 | V25: =V8-V18-V20-V22-V23-V24 -> 1.455191523e-11 | X25: =X8-X18-X20-X22-X23-X24-Y11-Z11-AA11 -> 0 | Y25: =Y8-Y18-Y20-Y22-Y23-Y24-Z12-AA12 -> 0 | Z25: =Z8-Z18-Z20-Z22-Z23-Z24-AA13 -> 0 | AA25: =AA8-AA18-AA20-AA22-AA23-AA24 -> 0 | AC25: =AC8-AC18-AC20-AC22-AC23-AC24-AD11-AE11-AF11 -> 0 | AD25: =AD8-AD18-AD20-AD22-AD23-AD24-AE12-AF12 -> 0 | AE25: =AE8-AE18-AE20-AE22-AE23-AE24-AF13 -> 0 | AF25: =AF8-AF18-AF20-AF22-AF23-AF24 -> 0 | AH25: =AH8-AH18-AH20-AH22-AH23-AH24-AI11-AJ11-AK11 -> 0 | AI25: =AI8-AI18-AI20-AI22-AI23-AI24-AJ12-AK12 -> 0 | AJ25: =AJ8-AJ18-AJ20-AJ22-AJ23-AJ24-AK13 -> 0 | AK25: =AK8-AK18-AK20-AK22-AK23-AK24 -> 0 | AM25: =AM8-AM18-AM20-AM22-AM23-AM24-AN11-AO11-AP11 -> 0 | AN25: =AN8-AN18-AN20-AN22-AN23-AN24-AO12-AP12 -> 0 | AO25: =AO8-AO18-AO20-AO22-AO23-AO24-AP13 -> 0 | AP25: =AP8-AP18-AP20-AP22-AP23-AP24 -> 0 | AR25: =AR8-AR18-AR20-AR22-AR23-AR24-AS11-AT11-AU11 -> 0 | AS25: =AS8-AS18-AS20-AS22-AS23-AS24-AT12-AU12 -> 0 | AT25: =AT8-AT18-AT20-AT22-AT23-AT24-AU13 -> 0 | AU25: =AU8-AU18-AU20-AU22-AU23-AU24 -> 0
B27: Руководитель организации | G27: ='[12]Инф-я'!$C$21 -> А.Ю. Александрук

Sheet Баланс мощности
B2: Электрическая мощность по диапазонам напряжения
B3: ='[12]Инф-я'!C14 -> МУП «Горэлектросеть» г. Муром
G5: МВт
A6: № п.п. | B6: Показатели | C6: По данным организации на 2024 год | H6: По данным экспертов на 2024 год
C7: Всего | D7: ВН | E7: СН1 | F7: СН2 | G7: НН | H7: Всего | I7: ВН | J7: СН1 | K7: СН2 | L7: НН
A8: 1 | B8: 2 | C8: 3 | D8: 4 | E8: 5 | F8: 6 | G8: 7 | H8: 8 | I8: 9 | J8: 10 | K8: 11 | L8: 12
A9: 1. | B9: Поступление мощности в сеть , ВСЕГО | C9: =C19+C21+C22 -> 29.90439731 | D9: =D15+D16+D17+D18 -> 29.44992171 | E9: =E10+E15+E16+E17+E18 -> 0.4335392 | F9: =F10+F15+F16+F17+F18 -> 29.90439731 | G9: =G10+G15+G16+G17+G18 -> 16.58942124 | H9: =H19+H21+H22 -> 0 | I9: =I15+I16+I17+I18 -> 0 | J9: =J10+J15+J16+J17+J18 -> 0 | K9: =K10+K15+K16+K17+K18 -> 0 | L9: =L10+L15+L16+L17+L18 -> 0
A10: 1.1. | B10: из смежной сети, всего | C10: х | D10: х | E10: =E12 -> 0 | F10: =F12+F13 -> 29.88346091 | G10: =G12+G13+G14 -> 16.58942124 | H10: х | I10: х | J10: =J12 -> 0 | K10: =K12+K13 -> 0 | L10: =L12+L13+L14 -> 0
B11: в том числе из сети | C11: х | D11: х | E11: х | F11: х | G11: х | H11: х | I11: х | J11: х | K11: х | L11: х
A12: 1.1.1. | B12: ВН | C12: х | D12: х | F12: =D9-D19-D21-D22-G12-E12 -> 29.44992171 | H12: х | I12: х | K12: =I9-I19-I21-I22-L12-J12 -> 0
A13: 1.1.2. | B13: СН1 | C13: х | D13: х | E13: х | F13: =E9-E19-E21-E22-G13 -> 0.4335392 | H13: х | I13: х | J13: х | K13: =J9-J19-J21-J22-L13 -> 0
A14: 1.1.3. | B14: СН2 | C14: х | D14: х | E14: х | F14: х | G14: =F9-F19-F21-F22 -> 16.58942124 | H14: х | I14: х | J14: х | K14: х | L14: =K9-K19-K21-K22 -> 0
A15: 1.2. | B15: от электростанций | C15: =SUM(D15:G15) -> 0 | H15: =SUM(I15:L15) -> 0
A16: 1.3. | B16: от ПАО "ФСК-Россети" | C16: =SUM(D16:G16) -> 0 | H16: =SUM(I16:L16) -> 0
A17: 1.4. | B17: от филиала "Владимирэнерго" ПАО «Россети Центр и Приволжье» | C17: =SUM(D17:G17) -> 29.90439731 | D17: =28.6707244+0.779197313737246 -> 29.44992171 | E17: 0.4335392 | F17: 0.0209364 | H17: =SUM(I17:L17) -> 0
A18: 1.5. | B18: от других сетевых организаций | C18: =SUM(D18:G18) -> 0 | H18: =SUM(I18:L18) -> 0
A19: 2. | B19: Потери мощности в сети | C19: =SUM(D19:G19) -> 2.187133333 | D19: =D9*D20/100 -> 0 | E19: =E9*E20/100 -> 0 | F19: =F9*F20/100 -> 1.121174281 | G19: =G9*G20/100 -> 1.065959052 | H19: =SUM(I19:L19) -> 0 | I19: =I9*I20/100 -> 0 | J19: =J9*J20/100 -> 0 | K19: =K9*K20/100 -> 0 | L19: =L9*L20/100 -> 0
A20: 2.1. | B20: то же в % (п.2./п.1.) | C20: =IF(C9=0,0,C19/C9*100) -> 7.313751588 | D20: ='Баланс энергии'!S19 -> 0 | E20: ='Баланс энергии'!T19 -> 0 | F20: ='Баланс энергии'!U19 -> 3.749195376 | G20: 6.425534902 | H20: =IF(H9=0,0,H19/H9*100) -> 0 | I20: ='Баланс энергии'!AH19 -> 0 | J20: ='Баланс энергии'!AI19 -> 0 | K20: ='Баланс энергии'!AJ19 -> 0
A21: 3. | B21: Расход электроэнергии на производственные и хознужды | C21: =SUM(D21:G21) -> 0 | H21: =SUM(I21:L21) -> 0
A22: 4. | B22: Полезный отпуск из сети | C22: =SUM(D22:G22) -> 27.71726398 | D22: =D23+D24+D25 -> 0 | E22: =E23+E24+E25 -> 0 | F22: =F23+F24+F25 -> 12.19380179 | G22: =G9-G19-G21 -> 15.52346219 | H22: =SUM(I22:L22) -> 0 | I22: =I23+I24+I25 -> 0 | J22: =J23+J24+J25 -> 0 | K22: =K23+K24+K25 -> 0 | L22: =L9-L19-L21 -> 0
A23: 4.1. | B23: потребителям, присоединенным к сети | C23: =SUM(D23:G23) -> 27.71726398 | F23: =11.414621+0.779180788737204 -> 12.19380179 | G23: 15.52346219 | H23: =SUM(I23:L23) -> 0
A24: 4.2. | B24: переток в сеть филиала "Владимирэнерго" ПАО «Россети Центр и Приволжье» | C24: =SUM(D24:G24) -> 0 | H24: =SUM(I24:L24) -> 0
A25: 4.3. | B25: переток в другие сетевые организации | C25: =SUM(D25:G25) -> 0 | H25: =SUM(I25:L25) -> 0
B26: Проверка | D26: =D9-D19-D21-D23-D24-D25-E12-F12-G12 -> 0 | E26: =E9-E19-E21-E23-E24-E25-F13-G13 -> 0 | F26: =F9-F19-F21-F23-F24-F25-G14 -> 0 | G26: =G9-G19-G21-G23-G24-G25 -> 0 | I26: =I9-I19-I21-I23-I24-I25-J12-K12-L12 -> 0 | J26: =J9-J19-J21-J23-J24-J25-K13-L13 -> 0 | K26: =K9-K19-K21-K23-K24-K25-L14 -> 0 | L26: =L9-L19-L21-L23-L24-L25 -> 0
B28: Руководитель организации | D28: ='[12]Инф-я'!$C$21 -> А.Ю. Александрук
